[Event "Early-Titled-Tuesday-Blitz-February-27-2024"]
[Site "Chess.com"]
[Date "2024.02.27"]
[Round "1"]
[White "DonMicheleCorleone"]
[Black "Alexander_Donchenko"]
[Result "1-0"]
[WhiteElo "2522"]
[BlackElo "2892"]
[TimeControl "180+1"]
[EndTime "8:04:33 PST"]
[Termination "DonMicheleCorleone won by checkmate"]

1. e4 {[%clk 0:02:55.3]} 1... c6 {[%clk 0:02:59.3]} 2. Nc3 {[%clk 0:02:53.8]}
2... d5 {[%clk 0:03:00.2]} 3. Nf3 {[%clk 0:02:53.2]} 3... dxe4 {[%clk
0:03:00.1]} 4. Nxe4 {[%clk 0:02:53.2]} 4... Nf6 {[%clk 0:03:00.8]} 5. Nxf6+
{[%clk 0:02:53.4]} 5... exf6 {[%clk 0:03:01.7]} 6. d4 {[%clk 0:02:53.9]} 6...
Bd6 {[%clk 0:03:02.1]} 7. Be2 {[%clk 0:02:53.6]} 7... O-O {[%clk 0:03:02.4]} 8.
O-O {[%clk 0:02:54.2]} 8... Re8 {[%clk 0:03:03]} 9. Be3 {[%clk 0:02:52.4]} 9...
Nd7 {[%clk 0:03:02.8]} 10. c4 {[%clk 0:02:51.7]} 10... Nf8 {[%clk 0:03:02.4]}
11. h3 {[%clk 0:02:50.1]} 11... Bf5 {[%clk 0:03:00.6]} 12. a4 {[%clk 0:02:45.8]}
12... a5 {[%clk 0:02:59.4]} 13. Bd3 {[%clk 0:02:43.5]} 13... Bg6 {[%clk
0:02:57.9]} 14. Re1 {[%clk 0:02:40.7]} 14... Qb6 {[%clk 0:02:55.6]} 15. c5
{[%clk 0:02:29.4]} 15... Bxc5 {[%clk 0:02:55.3]} 16. dxc5 {[%clk 0:02:29.2]}
16... Qxb2 {[%clk 0:02:55]} 17. Rb1 {[%clk 0:02:23.5]} 17... Qa3 {[%clk
0:02:53.8]} 18. Bxg6 {[%clk 0:02:20.2]} 18... hxg6 {[%clk 0:02:53.5]} 19. Qb3
{[%clk 0:02:18.5]} 19... Qxb3 {[%clk 0:02:48.8]} 20. Rxb3 {[%clk 0:02:19.4]}
20... Re7 {[%clk 0:02:48.7]} 21. Reb1 {[%clk 0:02:18.7]} 21... Ra7 {[%clk
0:02:48.7]} 22. Nd2 {[%clk 0:02:11.7]} 22... Ne6 {[%clk 0:02:45.9]} 23. Nc4
{[%clk 0:02:11.7]} 23... f5 {[%clk 0:02:46.4]} 24. g3 {[%clk 0:02:09]} 24... g5
{[%clk 0:02:46.1]} 25. f4 {[%clk 0:02:02.9]} 25... gxf4 {[%clk 0:02:46]} 26.
gxf4 {[%clk 0:02:03.3]} 26... g5 {[%clk 0:02:43.9]} 27. fxg5 {[%clk 0:02:00.3]}
27... f4 {[%clk 0:02:44.8]} 28. Bf2 {[%clk 0:01:59.7]} 28... Nxg5 {[%clk
0:02:45.4]} 29. Nd6 {[%clk 0:01:57.6]} 29... Re2 {[%clk 0:02:34.4]} 30. h4
{[%clk 0:01:51.6]} 30... Ne6 {[%clk 0:02:29.8]} 31. Rxb7 {[%clk 0:01:49.3]}
31... Rxb7 {[%clk 0:02:29.7]} 32. Rxb7 {[%clk 0:01:49.9]} 32... f3 {[%clk
0:02:28.4]} 33. Rxf7 {[%clk 0:01:46.6]} 33... Ra2 {[%clk 0:02:25.4]} 34. h5
{[%clk 0:01:27.6]} 34... Rxa4 {[%clk 0:02:17.5]} 35. h6 {[%clk 0:01:26.7]} 35...
Rg4+ {[%clk 0:02:18.1]} 36. Kf1 {[%clk 0:01:24.8]} 36... Ng5 {[%clk 0:02:15.7]}
37. Rg7+ {[%clk 0:01:20.5]} 37... Kf8 {[%clk 0:02:13.2]} 38. Be3 {[%clk
0:01:18]} 38... Rh4 {[%clk 0:01:57.9]} 39. Bxg5 {[%clk 0:01:16.3]} 39... Rh1+
{[%clk 0:01:56.8]} 40. Kf2 {[%clk 0:01:16.3]} 40... a4 {[%clk 0:01:57.7]} 41.
Be7# {[%clk 0:01:15.3]} 1-0

[Event "Early-Titled-Tuesday-Blitz-February-27-2024"]
[Site "Chess.com"]
[Date "2024.02.27"]
[Round "1"]
[White "AnaKuchava"]
[Black "Statham_01"]
[Result "0-1"]
[WhiteElo "2205"]
[BlackElo "2588"]
[TimeControl "180+1"]
[EndTime "8:04:35 PST"]
[Termination "Statham_01 won by resignation"]

1. d4 {[%clk 0:03:00.9]} 1... Nf6 {[%clk 0:02:58]} 2. Nf3 {[%clk 0:02:54.5]}
2... e6 {[%clk 0:02:57.8]} 3. c4 {[%clk 0:02:53.2]} 3... c5 {[%clk 0:02:58.2]}
4. d5 {[%clk 0:02:49.9]} 4... b5 {[%clk 0:02:58.6]} 5. cxb5 {[%clk 0:02:45.1]}
5... exd5 {[%clk 0:02:58.3]} 6. Nc3 {[%clk 0:02:43.6]} 6... d4 {[%clk 0:02:58]}
7. Nb1 {[%clk 0:02:33.9]} 7... d5 {[%clk 0:02:57.3]} 8. g3 {[%clk 0:02:18.4]}
8... Bd6 {[%clk 0:02:49.3]} 9. Bg2 {[%clk 0:02:17.7]} 9... Qa5+ {[%clk
0:02:42.1]} 10. Bd2 {[%clk 0:02:10.7]} 10... Qxb5 {[%clk 0:02:41.9]} 11. b3
{[%clk 0:02:09]} 11... O-O {[%clk 0:02:34.3]} 12. O-O {[%clk 0:02:08]} 12... Ba6
{[%clk 0:02:31.2]} 13. Re1 {[%clk 0:02:04.8]} 13... Re8 {[%clk 0:02:29.6]} 14.
Na3 {[%clk 0:01:54.2]} 14... Qd7 {[%clk 0:02:28]} 15. Rc1 {[%clk 0:01:36.3]}
15... Nc6 {[%clk 0:02:12.8]} 16. Bf1 {[%clk 0:00:33.8]} 16... c4 {[%clk
0:01:55.9]} 17. bxc4 {[%clk 0:00:30.9]} 17... Bxa3 {[%clk 0:01:54.9]} 0-1

[Event "Early-Titled-Tuesday-Blitz-February-27-2024"]
[Site "Chess.com"]
[Date "2024.02.27"]
[Round "1"]
[White "AlainBruxelles"]
[Black "MightyGMpretender"]
[Result "0-1"]
[WhiteElo "2438"]
[BlackElo "2769"]
[TimeControl "180+1"]
[EndTime "8:04:38 PST"]
[Termination "MightyGMpretender won by resignation"]

1. e4 {[%clk 0:03:00.9]} 1... c5 {[%clk 0:02:59.3]} 2. Nf3 {[%clk 0:02:59.8]}
2... Nc6 {[%clk 0:02:59.9]} 3. Nc3 {[%clk 0:02:57.9]} 3... d6 {[%clk 0:02:58.4]}
4. d4 {[%clk 0:02:57.3]} 4... cxd4 {[%clk 0:02:58.7]} 5. Nxd4 {[%clk 0:02:58.2]}
5... e5 {[%clk 0:02:59.2]} 6. Nde2 {[%clk 0:02:53.6]} 6... Be7 {[%clk
0:02:56.6]} 7. g3 {[%clk 0:02:53.4]} 7... Nf6 {[%clk 0:02:55.9]} 8. Bg2 {[%clk
0:02:53.3]} 8... O-O {[%clk 0:02:48.9]} 9. O-O {[%clk 0:02:52.6]} 9... Rb8
{[%clk 0:02:45.7]} 10. a4 {[%clk 0:02:49.6]} 10... Nb4 {[%clk 0:02:40.8]} 11. h3
{[%clk 0:02:39.4]} 11... Be6 {[%clk 0:02:40.6]} 12. Nd5 {[%clk 0:02:31.9]} 12...
Nfxd5 {[%clk 0:02:26.7]} 13. exd5 {[%clk 0:02:31.6]} 13... Bf5 {[%clk
0:02:27.4]} 14. g4 {[%clk 0:02:12]} 14... Bxc2 {[%clk 0:02:17]} 15. Qd2 {[%clk
0:02:10.4]} 15... a5 {[%clk 0:02:17.6]} 16. Nc3 {[%clk 0:02:01.5]} 16... Bd3
{[%clk 0:02:13.1]} 17. Rd1 {[%clk 0:01:59]} 17... Bc2 {[%clk 0:02:07.2]} 18. Rf1
{[%clk 0:01:56.7]} 18... Bg6 {[%clk 0:02:07.6]} 19. Ne4 {[%clk 0:01:46]} 19...
Rc8 {[%clk 0:02:05.7]} 20. Ra3 {[%clk 0:01:35]} 20... Nc2 {[%clk 0:01:51.8]} 21.
Rc3 {[%clk 0:01:29.8]} 21... Nd4 {[%clk 0:01:51.9]} 22. Rxc8 {[%clk 0:01:23.5]}
22... Qxc8 {[%clk 0:01:51.6]} 23. Qxa5 {[%clk 0:01:24.1]} 23... Ne2+ {[%clk
0:01:51.6]} 24. Kh1 {[%clk 0:01:17.2]} 24... Nxc1 {[%clk 0:01:51.9]} 0-1

[Event "Early-Titled-Tuesday-Blitz-February-27-2024"]
[Site "Chess.com"]
[Date "2024.02.27"]
[Round "1"]
[White "Msb2"]
[Black "NLLO777"]
[Result "1-0"]
[WhiteElo "3023"]
[BlackElo "2529"]
[TimeControl "180+1"]
[EndTime "8:04:46 PST"]
[Termination "Msb2 won by checkmate"]

1. d4 {[%clk 0:03:00.9]} 1... Nf6 {[%clk 0:02:59.9]} 2. c4 {[%clk 0:03:01.4]}
2... e6 {[%clk 0:03:00]} 3. Nc3 {[%clk 0:03:02.2]} 3... Bb4 {[%clk 0:02:56.3]}
4. e3 {[%clk 0:03:02.6]} 4... O-O {[%clk 0:02:56.1]} 5. Bd2 {[%clk 0:03:03.4]}
5... b6 {[%clk 0:02:52.9]} 6. Nf3 {[%clk 0:03:03.4]} 6... Bb7 {[%clk 0:02:53.1]}
7. Bd3 {[%clk 0:03:04]} 7... Re8 {[%clk 0:02:50.6]} 8. Qc2 {[%clk 0:03:02.4]}
8... Bf8 {[%clk 0:02:49.2]} 9. e4 {[%clk 0:03:00.7]} 9... d6 {[%clk 0:02:48.4]}
10. e5 {[%clk 0:02:57.7]} 10... dxe5 {[%clk 0:02:46.8]} 11. dxe5 {[%clk
0:02:58.6]} 11... Bxf3 {[%clk 0:02:44.9]} 12. gxf3 {[%clk 0:02:56.1]} 12... Nh5
{[%clk 0:02:44.2]} 13. Bxh7+ {[%clk 0:02:55.2]} 13... Kh8 {[%clk 0:02:45]} 14.
Be4 {[%clk 0:02:55.4]} 14... c6 {[%clk 0:02:44.8]} 15. f4 {[%clk 0:02:48.8]}
15... Qh4 {[%clk 0:02:44.9]} 16. Ne2 {[%clk 0:02:47]} 16... Bc5 {[%clk
0:02:38.8]} 17. O-O-O {[%clk 0:02:39.5]} 17... Bxf2 {[%clk 0:02:38.2]} 18. Kb1
{[%clk 0:02:36.3]} 18... Rc8 {[%clk 0:02:31.3]} 19. Bc1 {[%clk 0:02:21.7]} 19...
g6 {[%clk 0:01:54.1]} 20. Bxg6 {[%clk 0:02:14.9]} 20... fxg6 {[%clk 0:01:53.7]}
21. Qxg6 {[%clk 0:02:15.8]} 21... Ng7 {[%clk 0:01:51.2]} 22. Ka1 {[%clk
0:02:07.8]} 22... Qh5 {[%clk 0:01:44.5]} 23. Qg2 {[%clk 0:02:06.9]} 23... Qxe2
{[%clk 0:01:40.2]} 24. Rd2 {[%clk 0:02:01.1]} 24... Qxc4 {[%clk 0:01:37.6]} 25.
Rxf2 {[%clk 0:01:59.9]} 25... Nd7 {[%clk 0:01:35.9]} 26. Rg1 {[%clk 0:01:56.4]}
26... Nh5 {[%clk 0:00:50]} 27. Qg6 {[%clk 0:01:50.5]} 27... Nf8 {[%clk
0:00:38.2]} 28. Qg8# {[%clk 0:01:49.4]} 1-0

[Event "Early-Titled-Tuesday-Blitz-February-27-2024"]
[Site "Chess.com"]
[Date "2024.02.27"]
[Round "1"]
[White "pr1105"]
[Black "Egor_Koshulyan"]
[Result "0-1"]
[WhiteElo "2322"]
[BlackElo "2644"]
[TimeControl "180+1"]
[EndTime "8:04:48 PST"]
[Termination "Egor_Koshulyan won by resignation"]

1. e4 {[%clk 0:03:00.9]} 1... c5 {[%clk 0:02:59.9]} 2. Nf3 {[%clk 0:02:58.5]}
2... Nc6 {[%clk 0:03:00.1]} 3. Bb5 {[%clk 0:02:56.6]} 3... g5 {[%clk 0:02:59.6]}
4. Nxg5 {[%clk 0:02:41.5]} 4... Nf6 {[%clk 0:03:00.1]} 5. d3 {[%clk 0:02:25.4]}
5... Rg8 {[%clk 0:02:59.6]} 6. O-O {[%clk 0:01:57.4]} 6... Nd4 {[%clk
0:02:55.9]} 7. Bc4 {[%clk 0:01:47.7]} 7... d5 {[%clk 0:02:55.9]} 8. exd5 {[%clk
0:01:44]} 8... h6 {[%clk 0:02:56.3]} 9. c3 {[%clk 0:01:27]} 9... b5 {[%clk
0:02:56.4]} 10. cxd4 {[%clk 0:01:18.2]} 10... bxc4 {[%clk 0:02:56.3]} 11. Ne4
{[%clk 0:01:06.2]} 11... Bh3 {[%clk 0:02:51]} 12. Ng3 {[%clk 0:00:40.8]} 12...
Bg4 {[%clk 0:02:48.1]} 13. Qa4+ {[%clk 0:00:40]} 13... Bd7 {[%clk 0:02:46.1]}
14. Qxc4 {[%clk 0:00:39.2]} 14... cxd4 {[%clk 0:02:47]} 15. Qxd4 {[%clk
0:00:34.4]} 15... Bg7 {[%clk 0:02:47]} 16. Nc3 {[%clk 0:00:31.8]} 16... Ng4
{[%clk 0:02:41.4]} 17. Qe4 {[%clk 0:00:25.9]} 17... Bf6 {[%clk 0:02:29.7]} 18.
Re1 {[%clk 0:00:24.4]} 18... Qb6 {[%clk 0:02:27.4]} 19. Re2 {[%clk 0:00:20.7]}
19... a5 {[%clk 0:02:11]} 20. h3 {[%clk 0:00:20.9]} 20... Nxf2 {[%clk
0:02:08.2]} 21. Be3 {[%clk 0:00:19.3]} 21... Nxe4 {[%clk 0:02:07.2]} 22. Bxb6
{[%clk 0:00:19.6]} 22... Nxg3 {[%clk 0:02:07]} 23. Re3 {[%clk 0:00:19]} 23...
Rb8 {[%clk 0:02:03.7]} 24. Bxa5 {[%clk 0:00:18.6]} 24... Bd4 {[%clk 0:02:03.4]}
0-1

[Event "Early-Titled-Tuesday-Blitz-February-27-2024"]
[Site "Chess.com"]
[Date "2024.02.27"]
[Round "1"]
[White "tsaruk_maks"]
[Black "Schattman"]
[Result "1-0"]
[WhiteElo "2763"]
[BlackElo "2434"]
[TimeControl "180+1"]
[EndTime "8:04:49 PST"]
[Termination "tsaruk_maks won by resignation"]

1. d4 {[%clk 0:02:48.6]} 1... Nf6 {[%clk 0:02:58.3]} 2. c4 {[%clk 0:02:49.5]}
2... g6 {[%clk 0:02:58.5]} 3. Nf3 {[%clk 0:02:50.4]} 3... Bg7 {[%clk 0:02:58.1]}
4. g3 {[%clk 0:02:50.5]} 4... c6 {[%clk 0:02:57.7]} 5. Bg2 {[%clk 0:02:51.2]}
5... d5 {[%clk 0:02:58]} 6. O-O {[%clk 0:02:51.5]} 6... O-O {[%clk 0:02:57.4]}
7. b3 {[%clk 0:02:52]} 7... a5 {[%clk 0:02:51]} 8. Bb2 {[%clk 0:02:49.3]} 8...
a4 {[%clk 0:02:51]} 9. cxd5 {[%clk 0:02:48.4]} 9... cxd5 {[%clk 0:02:39.9]} 10.
bxa4 {[%clk 0:02:48.2]} 10... Qa5 {[%clk 0:02:36.9]} 11. Nc3 {[%clk 0:02:48]}
11... Ne4 {[%clk 0:02:35.4]} 12. Nxe4 {[%clk 0:02:45.5]} 12... dxe4 {[%clk
0:02:35]} 13. Ne5 {[%clk 0:02:46.4]} 13... Qxa4 {[%clk 0:02:25.6]} 14. Qb3
{[%clk 0:02:26.4]} 14... Be6 {[%clk 0:02:05.2]} 15. Qxb7 {[%clk 0:02:24]} 15...
Ra7 {[%clk 0:02:05.3]} 16. Qxe4 {[%clk 0:02:22.2]} 16... Bxe5 {[%clk 0:01:55.7]}
17. Qxe5 {[%clk 0:02:19.1]} 17... Nd7 {[%clk 0:01:44.6]} 18. Qg5 {[%clk
0:02:08.3]} 18... Ra5 {[%clk 0:01:35.2]} 19. Qxe7 {[%clk 0:02:05.7]} 19... Nb6
{[%clk 0:01:03.4]} 20. d5 {[%clk 0:01:58.3]} 20... Nc4 {[%clk 0:00:50.8]} 21.
Bd4 {[%clk 0:01:49.9]} 21... Nd2 {[%clk 0:00:42.6]} 22. Qf6 {[%clk 0:01:48]} 1-0

[Event "Early-Titled-Tuesday-Blitz-February-27-2024"]
[Site "Chess.com"]
[Date "2024.02.27"]
[Round "1"]
[White "Noki102"]
[Black "GHANDEEVAM2003"]
[Result "0-1"]
[WhiteElo "2528"]
[BlackElo "3016"]
[TimeControl "180+1"]
[EndTime "8:04:54 PST"]
[Termination "GHANDEEVAM2003 won by resignation"]

1. d4 {[%clk 0:03:00.9]} 1... d6 {[%clk 0:02:58.8]} 2. Nf3 {[%clk 0:03:01.4]}
2... g6 {[%clk 0:02:59.4]} 3. g3 {[%clk 0:03:01.2]} 3... Bg7 {[%clk 0:03:00.1]}
4. Bg2 {[%clk 0:03:01.9]} 4... Nc6 {[%clk 0:03:00.6]} 5. O-O {[%clk 0:03:02.5]}
5... Nf6 {[%clk 0:03:00.9]} 6. Nc3 {[%clk 0:03:01.4]} 6... O-O {[%clk
0:03:00.6]} 7. e4 {[%clk 0:03:01.8]} 7... Rb8 {[%clk 0:02:58.8]} 8. a4 {[%clk
0:03:00.2]} 8... a5 {[%clk 0:02:58]} 9. h3 {[%clk 0:02:55.8]} 9... Nb4 {[%clk
0:02:57.6]} 10. Be3 {[%clk 0:02:54.4]} 10... c6 {[%clk 0:02:56.9]} 11. Qd2
{[%clk 0:02:51.9]} 11... Bd7 {[%clk 0:02:53.4]} 12. Rfd1 {[%clk 0:02:39.4]}
12... Qc7 {[%clk 0:02:51.2]} 13. e5 {[%clk 0:02:15.5]} 13... Nfd5 {[%clk
0:02:50.6]} 14. Nxd5 {[%clk 0:02:12.6]} 14... Nxd5 {[%clk 0:02:49.9]} 15. Bh6
{[%clk 0:02:10.3]} 15... Rbd8 {[%clk 0:02:46.7]} 16. Qg5 {[%clk 0:02:01.2]}
16... Bf5 {[%clk 0:02:43.6]} 17. c3 {[%clk 0:01:55.5]} 17... Be4 {[%clk
0:02:39]} 18. Qh4 {[%clk 0:01:50]} 18... Bxf3 {[%clk 0:02:38.1]} 19. Bxf3 {[%clk
0:01:50.9]} 19... dxe5 {[%clk 0:02:33.9]} 20. dxe5 {[%clk 0:01:28.6]} 20... Qxe5
{[%clk 0:02:34.8]} 21. Re1 {[%clk 0:01:25.2]} 21... Qf6 {[%clk 0:02:29.8]} 22.
Qxf6 {[%clk 0:01:11.7]} 22... exf6 {[%clk 0:02:28.7]} 23. Bd2 {[%clk 0:00:49.3]}
23... f5 {[%clk 0:02:22.6]} 24. Re2 {[%clk 0:00:38.4]} 24... Rd7 {[%clk
0:02:19.3]} 25. Rae1 {[%clk 0:00:32.6]} 25... h5 {[%clk 0:02:18.6]} 26. h4
{[%clk 0:00:31]} 26... Nb6 {[%clk 0:02:14.4]} 27. b3 {[%clk 0:00:29.2]} 27...
Rd3 {[%clk 0:02:14.2]} 28. b4 {[%clk 0:00:23.1]} 28... Rxf3 {[%clk 0:02:13.3]}
29. bxa5 {[%clk 0:00:21.8]} 29... Nc4 {[%clk 0:02:13.2]} 0-1

[Event "Early-Titled-Tuesday-Blitz-February-27-2024"]
[Site "Chess.com"]
[Date "2024.02.27"]
[Round "1"]
[White "GatoRojo150"]
[Black "Yushko_Olga"]
[Result "1-0"]
[WhiteElo "2592"]
[BlackElo "2211"]
[TimeControl "180+1"]
[EndTime "8:04:54 PST"]
[Termination "GatoRojo150 won by resignation"]

1. e4 {[%clk 0:03:00.9]} 1... e6 {[%clk 0:02:58.3]} 2. d4 {[%clk 0:03:00.5]}
2... d5 {[%clk 0:02:58.6]} 3. Nc3 {[%clk 0:03:00.7]} 3... Nf6 {[%clk 0:02:58.6]}
4. e5 {[%clk 0:02:58.3]} 4... Nfd7 {[%clk 0:02:58.7]} 5. Nf3 {[%clk 0:02:59]}
5... c5 {[%clk 0:02:59.5]} 6. Bg5 {[%clk 0:02:59.2]} 6... Nc6 {[%clk 0:03:00.4]}
7. Bxd8 {[%clk 0:02:58.9]} 7... Nxd8 {[%clk 0:02:59]} 8. Bb5 {[%clk 0:02:57.6]}
8... Be7 {[%clk 0:02:56.9]} 9. O-O {[%clk 0:02:54.6]} 9... O-O {[%clk
0:02:56.5]} 10. Bxd7 {[%clk 0:02:53.5]} 10... Bxd7 {[%clk 0:02:57.4]} 11. Ne2
{[%clk 0:02:51.5]} 11... Rc8 {[%clk 0:02:54.1]} 12. c3 {[%clk 0:02:51.3]} 12...
b5 {[%clk 0:02:53.5]} 13. Nf4 {[%clk 0:02:49.9]} 13... a5 {[%clk 0:02:50.2]} 14.
h4 {[%clk 0:02:48.6]} 14... b4 {[%clk 0:02:49.7]} 15. Ng5 {[%clk 0:02:47.9]}
15... h6 {[%clk 0:02:48.3]} 16. Nf3 {[%clk 0:02:40.3]} 16... Nc6 {[%clk
0:02:41.6]} 17. Nh5 {[%clk 0:02:37.7]} 17... Rb8 {[%clk 0:02:37.7]} 18. Qd2
{[%clk 0:02:37.6]} 18... a4 {[%clk 0:02:31.2]} 19. a3 {[%clk 0:02:36.3]} 19...
Na5 {[%clk 0:02:24.8]} 20. Qf4 {[%clk 0:02:33.4]} 20... Kh7 {[%clk 0:02:15.4]}
21. Qg4 {[%clk 0:02:27.5]} 21... Rg8 {[%clk 0:02:15]} 22. Qf4 {[%clk 0:02:17.2]}
22... Rgf8 {[%clk 0:02:05.7]} 23. Rfe1 {[%clk 0:02:11.1]} 23... Nc4 {[%clk
0:01:51.4]} 24. Re2 {[%clk 0:02:02.7]} 24... Bb5 {[%clk 0:01:45.6]} 25. Nh2
{[%clk 0:01:48.2]} 25... Nxa3 {[%clk 0:01:40.9]} 26. Ree1 {[%clk 0:01:34.2]}
26... Nc2 {[%clk 0:01:40.4]} 27. Ng4 {[%clk 0:01:34.4]} 27... Nxa1 {[%clk
0:01:38]} 28. Rxa1 {[%clk 0:01:33.3]} 28... bxc3 {[%clk 0:01:37.6]} 29. bxc3
{[%clk 0:01:34.2]} 29... Bc6 {[%clk 0:01:34.2]} 30. Nxg7 {[%clk 0:01:28.4]} 1-0

[Event "Early-Titled-Tuesday-Blitz-February-27-2024"]
[Site "Chess.com"]
[Date "2024.02.27"]
[Round "1"]
[White "bipe137"]
[Black "dorpato"]
[Result "1-0"]
[WhiteElo "2561"]
[BlackElo "2113"]
[TimeControl "180+1"]
[EndTime "8:04:56 PST"]
[Termination "bipe137 won by resignation"]

1. d4 {[%clk 0:03:00.3]} 1... Nf6 {[%clk 0:02:56.5]} 2. c4 {[%clk 0:03:00.2]}
2... g6 {[%clk 0:02:50.8]} 3. Nc3 {[%clk 0:02:58.3]} 3... d5 {[%clk 0:02:48.6]}
4. cxd5 {[%clk 0:02:58.1]} 4... Nxd5 {[%clk 0:02:47.6]} 5. e4 {[%clk 0:02:58.3]}
5... Nxc3 {[%clk 0:02:41.8]} 6. bxc3 {[%clk 0:02:59.2]} 6... Bg7 {[%clk
0:02:42.4]} 7. Bc4 {[%clk 0:02:59.2]} 7... O-O {[%clk 0:02:39.3]} 8. h4 {[%clk
0:02:56.7]} 8... h5 {[%clk 0:02:25.5]} 9. Ne2 {[%clk 0:02:55.9]} 9... a6 {[%clk
0:02:17]} 10. Be3 {[%clk 0:02:55.9]} 10... b5 {[%clk 0:02:10.4]} 11. Bd5 {[%clk
0:02:53.5]} 11... c6 {[%clk 0:02:08.6]} 12. Bb3 {[%clk 0:02:53.5]} 12... a5
{[%clk 0:02:08.2]} 13. a3 {[%clk 0:02:51.7]} 13... Qc7 {[%clk 0:01:52.8]} 14.
Nf4 {[%clk 0:02:46.8]} 14... Kh7 {[%clk 0:01:28.2]} 15. f3 {[%clk 0:02:38.7]}
15... c5 {[%clk 0:01:23.5]} 16. g4 {[%clk 0:02:30.3]} 16... cxd4 {[%clk
0:01:20.1]} 17. cxd4 {[%clk 0:02:31.2]} 17... Qc3+ {[%clk 0:01:14.4]} 18. Kf2
{[%clk 0:02:30]} 18... Nc6 {[%clk 0:00:52.2]} 19. Ne2 {[%clk 0:02:16]} 19... Qb2
{[%clk 0:00:30.9]} 20. Ra2 {[%clk 0:02:08]} 20... Qxa2 {[%clk 0:00:13.8]} 21.
Bxa2 {[%clk 0:02:08.9]} 21... b4 {[%clk 0:00:14]} 22. gxh5 {[%clk 0:02:06.2]}
22... gxh5 {[%clk 0:00:13.2]} 23. Ng3 {[%clk 0:02:02.4]} 1-0

[Event "Early-Titled-Tuesday-Blitz-February-27-2024"]
[Site "Chess.com"]
[Date "2024.02.27"]
[Round "1"]
[White "cthulhuuu"]
[Black "mr_gustavo"]
[Result "0-1"]
[WhiteElo "2416"]
[BlackElo "2729"]
[TimeControl "180+1"]
[EndTime "8:04:58 PST"]
[Termination "mr_gustavo won by resignation"]

1. e4 {[%clk 0:03:00.1]} 1... e6 {[%clk 0:02:57.4]} 2. d3 {[%clk 0:02:58.2]}
2... d5 {[%clk 0:02:57.2]} 3. Nd2 {[%clk 0:02:58.8]} 3... g6 {[%clk 0:02:54.9]}
4. g3 {[%clk 0:02:58.5]} 4... Bg7 {[%clk 0:02:54.9]} 5. Bg2 {[%clk 0:02:59.1]}
5... Ne7 {[%clk 0:02:55.5]} 6. Ngf3 {[%clk 0:02:59.7]} 6... O-O {[%clk 0:02:56]}
7. O-O {[%clk 0:03:00]} 7... c5 {[%clk 0:02:56.2]} 8. Re1 {[%clk 0:03:00.2]}
8... Nbc6 {[%clk 0:02:56]} 9. Qe2 {[%clk 0:03:00.7]} 9... b6 {[%clk 0:02:54.9]}
10. e5 {[%clk 0:03:00]} 10... Bb7 {[%clk 0:02:54]} 11. Nf1 {[%clk 0:02:59.6]}
11... Rc8 {[%clk 0:02:53.7]} 12. c3 {[%clk 0:02:59.1]} 12... Qd7 {[%clk
0:02:47.3]} 13. h4 {[%clk 0:02:57.5]} 13... h5 {[%clk 0:02:44.1]} 14. N1h2
{[%clk 0:02:57]} 14... Nf5 {[%clk 0:02:43.6]} 15. Bh3 {[%clk 0:02:47.9]} 15...
d4 {[%clk 0:02:41.4]} 16. c4 {[%clk 0:02:47.3]} 16... Nce7 {[%clk 0:02:38.8]}
17. Bg5 {[%clk 0:02:39.4]} 17... Qc6 {[%clk 0:02:30.8]} 18. g4 {[%clk
0:02:11.1]} 18... hxg4 {[%clk 0:02:24.2]} 19. Bxg4 {[%clk 0:02:12]} 19... Rfe8
{[%clk 0:02:15.9]} 20. h5 {[%clk 0:02:04.3]} 20... gxh5 {[%clk 0:02:15.9]} 21.
Bxh5 {[%clk 0:02:05.2]} 21... Ng6 {[%clk 0:02:16]} 22. Ng4 {[%clk 0:01:38.5]}
22... Ngh4 {[%clk 0:02:04.5]} 23. Ngh2 {[%clk 0:01:07.2]} 23... Ng6 {[%clk
0:02:04.5]} 24. Ng4 {[%clk 0:01:07.3]} 24... Nfh4 {[%clk 0:02:05.1]} 25. Ngh2
{[%clk 0:00:58.3]} 25... Nxf3+ {[%clk 0:01:51.2]} 26. Bxf3 {[%clk 0:00:49.8]}
26... Qc7 {[%clk 0:01:50.7]} 27. Bxb7 {[%clk 0:00:33.3]} 27... Qxb7 {[%clk
0:01:51.6]} 28. Ng4 {[%clk 0:00:33.9]} 0-1

[Event "Early-Titled-Tuesday-Blitz-February-27-2024"]
[Site "Chess.com"]
[Date "2024.02.27"]
[Round "1"]
[White "Jamal-Jamal-Jamal"]
[Black "DefiantChair"]
[Result "0-1"]
[WhiteElo "2271"]
[BlackElo "2611"]
[TimeControl "180+1"]
[EndTime "8:04:58 PST"]
[Termination "DefiantChair won by resignation"]

1. e4 {[%clk 0:03:00.9]} 1... c5 {[%clk 0:03:00.4]} 2. Nf3 {[%clk 0:02:57]} 2...
d6 {[%clk 0:03:00.7]} 3. d4 {[%clk 0:02:55.9]} 3... cxd4 {[%clk 0:03:01.6]} 4.
Qxd4 {[%clk 0:02:55.8]} 4... Nc6 {[%clk 0:03:00.9]} 5. Qe3 {[%clk 0:02:55.1]}
5... Nf6 {[%clk 0:02:59]} 6. Be2 {[%clk 0:02:53.3]} 6... g6 {[%clk 0:02:58.8]}
7. h3 {[%clk 0:02:52.4]} 7... Bg7 {[%clk 0:02:58.8]} 8. O-O {[%clk 0:02:52.1]}
8... O-O {[%clk 0:02:59.1]} 9. Rd1 {[%clk 0:02:52.4]} 9... Nd7 {[%clk
0:02:42.6]} 10. c4 {[%clk 0:02:47.6]} 10... Nc5 {[%clk 0:02:42.3]} 11. Nc3
{[%clk 0:02:32.9]} 11... a5 {[%clk 0:02:41.8]} 12. Nb5 {[%clk 0:02:19.8]} 12...
a4 {[%clk 0:02:40.3]} 13. Rb1 {[%clk 0:02:19.3]} 13... Ne5 {[%clk 0:02:33]} 14.
Nxe5 {[%clk 0:02:15.9]} 14... Bxe5 {[%clk 0:02:32.4]} 15. f4 {[%clk 0:02:16]}
15... Bg7 {[%clk 0:02:32.4]} 16. e5 {[%clk 0:02:16.3]} 16... Bf5 {[%clk
0:02:30.3]} 17. Ra1 {[%clk 0:02:07.1]} 17... Re8 {[%clk 0:02:21.5]} 18. Bf3
{[%clk 0:01:35.4]} 18... Bd7 {[%clk 0:02:18]} 19. exd6 {[%clk 0:01:27.3]} 19...
exd6 {[%clk 0:02:13.9]} 20. Qd2 {[%clk 0:01:20]} 20... Bxb5 {[%clk 0:02:12.9]}
21. cxb5 {[%clk 0:01:20.9]} 21... a3 {[%clk 0:02:07.2]} 22. Rb1 {[%clk
0:01:14.7]} 22... Na4 {[%clk 0:01:51.3]} 23. Bxb7 {[%clk 0:01:00.1]} 23... Qb6+
{[%clk 0:01:50.3]} 24. Kh1 {[%clk 0:00:59.4]} 24... Qxb7 {[%clk 0:01:51]} 25.
Qxd6 {[%clk 0:00:49.5]} 25... axb2 {[%clk 0:01:46.1]} 0-1